fUSD/lending_fUSD_20240525
["ID","MTS","AMOUNT","RATE_DAILY","PERIOD"]
[327914916,1716624643642,-733.758779,0.000295,7]
[327914917,1716624643652,-151.0,0.000295,7]
[327914918,1716624643661,-151.0,0.000295,7]
[327914919,1716624643670,-151.0,0.000295,7]
[327914920,1716624643679,-151.0,0.000295,7]
[327914921,1716624643688,-154.03121003,0.00029512,2]
[327914922,1716624643698,-180.74659826,0.0002959,2]
[327914923,1716624643707,-150.0,0.00029637,2]
[327914924,1716624643716,-150.0,0.00029719,2]
[327914925,1716624643726,-150.0,0.00029728,2]
[327914926,1716624643735,-300.0,0.0002973,2]
[327914927,1716624643744,-300.0,0.0002974,2]
[327914928,1716624643753,-150.0,0.00029742,2]
[327914929,1716624643763,-870.49,0.00029753,2]
[327914930,1716624643772,-415.94,0.00029753,2]
[327914931,1716624643782,-870.49,0.00029753,2]
[327914932,1716624643791,-870.49,0.00029753,2]
[327914933,1716624643800,-870.49,0.00029753,2]
[327914934,1716624643810,-870.49,0.00029753,2]
[327914935,1716624643820,-870.49,0.00029753,2]
[327914936,1716624643829,-150.0,0.00029756,2]
[327914937,1716624643838,-150.0,0.0002976,2]
[327914938,1716624643848,-150.0,0.00029762,2]
[327914939,1716624643857,-1500.0,0.00029767,2]
[327914940,1716624643866,-180.74659826,0.0002978,2]
[327914941,1716624643875,-5425.84054763,0.0002978,2]
[327914942,1716624644044,-500.0,0.0002978,2]
[327914943,1716624644057,-6726.22636825,0.0002978,2]
[327914944,1716624644068,-150.0,0.00029781,2]
[327914945,1716624644077,-109.35763175,0.00029788,2]
[327914961,1716625633177,-240.98288585,0.00013972,2]
[327914962,1716625633200,-181.53,0.00013973,2]
[327914963,1716625633224,-619.31575855,0.00016482,2]
[327914964,1716625633245,-591.0106,0.00016483,2]
[327914965,1716625633267,-300.0,0.00016593,2]
[327914966,1716625633288,-179.69,0.00016712,2]
[327914967,1716625633308,-5083.27432854,0.00017213,2]
[327914968,1716625633329,-3725.813,0.00017214,2]
[327914969,1716625633351,-358.45,0.00017534,2]
[327914970,1716625633372,-732.44,0.00017534,2]
[327914971,1716625633394,-241.93,0.00017534,2]
[327914972,1716625633415,-499.99,0.00017534,2]
[327914973,1716625634203,1227.82126936,0.00016592,2]
[327914976,1716625700060,5083.27432854,0.00017807,2]
[327914977,1716625704085,240.98288585,0.00017533,2]
[327914978,1716625704841,619.31575855,0.00017807,2]
[327914979,1716625708694,1227.82126936,0.00017807,2]
[327914980,1716625710420,581428.95984778,0.0003,30]
[327914981,1716625783438,240.98288585,0.00017807,2]
[327914982,1716625789370,619.31575855,0.00017807,2]
[327914983,1716625793202,1227.82126936,0.00017807,2]
[327914987,1716625832776,-300.0,0.0001816,2]
[327914988,1716625832786,-10000.0,0.0001826,2]
[327914989,1716625832796,-209.34589343,0.00018262,2]
[327914990,1716625832806,-280.0,0.00018362,2]
[327914991,1716625832819,-199.75342616,0.00018969,2]
[327914992,1716625832831,-240.98288585,0.00018969,2]
[327914993,1716625832841,-1227.82126936,0.00018969,2]
[327914994,1716625832851,-257.30145116,0.00018969,2]
[327914995,1716625832861,-372.03274481,0.0001897,2]
[327914996,1716625832871,-164.0,0.00018971,2]
[327914997,1716625832881,-1349.909,0.00018971,2]
[327914998,1716625832893,-150.0,0.00018971,2]
[327914999,1716625832903,-445.0,0.00018971,2]
[327915000,1716625832912,-810.0,0.00018971,2]
[327915001,1716625832921,-1138.0,0.00018971,2]
[327915002,1716625832931,-150.0,0.00018971,2]
[327915003,1716625832942,-1650.0,0.00018971,2]
[327915004,1716625832951,-215.0,0.00018971,2]
[327915005,1716625832961,-3164.0,0.00018971,2]
[327915006,1716625832971,-974.0,0.00018971,2]
[327915007,1716625832980,-5137.0,0.00018971,2]
[327915008,1716625832990,-499.99,0.00019726,2]
[327915009,1716625833001,-458.06978826,0.0002,2]
[327915010,1716625833012,-5189.03261963,0.0002,2]
[327915011,1716625833021,-242.09407043,0.0002,2]
[327915012,1716625833031,-158.57592294,0.00020191,2]
[327915013,1716625833040,-371.1223,0.00020192,2]
[327915014,1716625833049,-391.0,0.00020198,2]
[327915015,1716625833058,-181.53,0.00020447,2]
[327915016,1716625833069,-155.726,0.00021971,2]
[327915017,1716625833079,-150.0,0.00021971,2]
[327915018,1716625833089,-360.773,0.00021971,2]
[327915019,1716625833098,-1138.0,0.00021971,2]
[327915020,1716625833108,-150.0,0.00021971,2]
[327915021,1716625833117,-1650.0,0.00021971,2]
[327915022,1716625833127,-215.0,0.00021971,2]
[327915023,1716625833136,-3163.0,0.00021971,2]
[327915024,1716625833146,-3437.0,0.00021971,2]
[327915025,1716625833156,-800.0,0.00022192,2]
[327915026,1716625833165,-310.0,0.00022218,2]
[327915027,1716625833176,-153.30991185,0.00023129,2]
[327915028,1716625833186,-154.03121004,0.00023653,2]
[327915029,1716625833196,-154.03121004,0.00023932,2]
[327915030,1716625833206,-168.92682127,0.00024026,2]
[327915031,1716625833216,-389.58,0.00024297,2]
[327915032,1716625833225,-154.03121004,0.00024377,2]
[327915033,1716625833235,-1138.0,0.00024971,2]
[327915034,1716625833245,-355.801,0.00024971,2]
[327915035,1716625833255,-215.0,0.00024971,2]
[327915036,1716625833265,-250.0,0.00025206,2]
[327915037,1716625833275,-185.46,0.00025289,2]
[327915038,1716625833285,-234.15,0.00025306,2]
[327915039,1716625833294,-1000.0,0.00025333,2]
[327915040,1716625833304,-159.5916392,0.00025364,2]
[327915041,1716625833313,-3480.22,0.00025454,2]
[327915042,1716625833323,-12854.43,0.00025497,2]
[327915043,1716625833332,-250.0,0.00025497,2]
[327915044,1716625833343,-500.0,0.00025525,2]
[327915045,1716625833353,-200.0,0.0002553,2]
[327915046,1716625833362,-4600.6,0.00025769,2]
[327915047,1716625833372,-171.3,0.00026053,2]
[327915048,1716625833382,-547.25,0.00026095,2]
[327915049,1716625833393,-177.13,0.00026112,2]
[327915050,1716625833403,-250.0,0.00026215,2]
[327915051,1716625833412,-389.58,0.00026561,2]
[327915052,1716625833421,-160.14420379,0.00026579,2]
[327915053,1716625833430,-3480.22,0.00026727,2]
[327915054,1716625833440,-181.53,0.00026921,2]
[327915055,1716625833450,-160.14420379,0.00027198,2]
[327915056,1716625833459,-154.03121004,0.00027376,2]
[327915057,1716625833468,-156.0,0.000274,2]
[327915058,1716625833478,-177.13,0.00027548,2]
[327915059,1716625833487,-1000.0,0.000279,2]
[327915060,1716625833497,-2000.0,0.000279,2]
[327915061,1716625833507,-919.5009134,0.000279,2]
[327915062,1716625833516,-156.04,0.00027924,2]
[327915063,1716625833525,-781.11584657,0.00027971,2]
[327915094,1716625838368,-356.88415343,0.00027971,2]
[327915096,1716625838378,-2766.64584657,0.00027999,2]
[327915097,1716625838391,-713.57415343,0.00027999,2]
[327915098,1716625838401,-167.0,0.00028194,2]
[327915099,1716625838411,-2005.79258683,0.00028288,2]
[327915100,1716625838420,-1345.66,0.00028498,2]
[327915101,1716625838430,-1000.0,0.00028499,2]
[327915102,1716625838439,-160.14420379,0.00028536,2]
[327915103,1716625838449,-200.0,0.00028673,2]
[327915104,1716625838458,-337.28,0.00028785,10]
[327915105,1716625838468,-171.12,0.00028794,2]
[327915106,1716625838477,-618.7,0.00028795,2]
[327915107,1716625838487,-870.49,0.00028795,2]
[327915108,1716625838496,-870.49,0.00028795,2]
[327915109,1716625838506,-415.94,0.00028795,2]
[327915110,1716625838515,-870.49,0.00028795,2]
[327915111,1716625838525,-415.94,0.00028795,2]
[327915112,1716625838732,-415.94,0.00028795,2]
[327915113,1716625838746,-870.49,0.00028795,2]
[327915114,1716625838755,-415.94,0.00028795,2]
[327915115,1716625838765,-870.49,0.00028795,2]
[327915116,1716625838775,-870.49,0.00028795,2]
[327915117,1716625838785,-415.94,0.00028795,2]
[327915118,1716625838794,-870.49,0.00028795,2]
[327915119,1716625838804,-415.94,0.00028795,2]
[327915120,1716625838814,-507.73,0.00028795,2]
[327915121,1716625838827,-415.94,0.00028795,2]
[327915122,1716625838836,-415.14,0.00028795,2]
[327915123,1716625838846,-389.58,0.00028825,2]
[327915124,1716625838855,-177.13,0.00028985,2]
[327915125,1716625838866,-167.0,0.00029125,2]
[327915126,1716625838876,-156.53862349,0.00029182,2]
[327915127,1716625838886,-3480.22,0.00029272,2]
[327915128,1716625838897,-157.15625086,0.0002949,2]
[327915129,1716625838907,-164.22626437,0.00029569,2]
[327915130,1716625838916,-161.27564038,0.00029581,2]
[327915131,1716625838925,-154.03121007,0.00029581,2]
[327915132,1716625838934,-150.0,0.00029659,2]
[327915133,1716625838943,-150.0,0.00029669,2]
[327915134,1716625838953,-150.0,0.0002967,2]
[327915135,1716625838962,-2667.1372,0.00029679,2]
[327915136,1716625838972,-452.4344,0.00029679,2]
[327915137,1716625838981,-961.7453,0.0002968,2]
[327915138,1716625838991,-1244.64397579,0.0002968,2]
[327915139,1716625839001,-150.0,0.00029681,2]
[327915140,1716625839010,-150.0,0.00029691,2]
[327915141,1716625839020,-289.68325733,0.00029699,2]
[327915142,1716625839030,-1500.0,0.00029699,2]
[327915143,1716625839040,-150.0,0.000297,6]
[327915144,1716625839050,-150.0,0.00029704,2]
[327915145,1716625839059,-150.0,0.00029705,2]
[327915146,1716625839069,-1500.0,0.00029716,2]
[327915147,1716625839079,-150.0,0.00029717,2]
[327915148,1716625839089,-150.0,0.00029723,2]
[327915149,1716625839099,-1638.37782748,0.00029724,2]
[327915150,1716625839109,-300.0,0.00029731,2]
[327915151,1716625839120,-151.90308189,0.00029744,2]
[327915152,1716625839130,-150.0,0.00029748,2]
[327915153,1716625839140,-3502.19990978,0.00029751,2]
[327915154,1716625839150,-150.0,0.00029753,2]
[327915155,1716625839161,-151.15,0.00029753,2]
[327915156,1716625839171,-150.0,0.00029753,2]
[327915157,1716625839182,-421.16,0.00029753,2]
[327915158,1716625839192,-150.92,0.00029753,2]
[327915159,1716625839202,-150.0,0.00029753,2]
[327915160,1716625839213,-150.0,0.00029753,2]
[327915161,1716625839223,-421.16,0.00029753,2]
[327915162,1716625839233,-421.16,0.00029753,2]
[327915163,1716625839243,-150.0,0.00029753,2]
[327915164,1716625839254,-150.0,0.00029753,2]
[327915165,1716625839264,-150.0,0.00029753,2]
[327915166,1716625839274,-150.0,0.00029753,2]
[327915167,1716625839284,-150.0,0.00029753,2]
[327915168,1716625839294,-352.18,0.00029753,2]
[327915169,1716625839304,-150.0,0.00029753,2]
[327915170,1716625839314,-352.18,0.00029753,2]
[327915171,1716625839324,-421.16,0.00029753,2]
[327915172,1716625839334,-150.0,0.00029753,2]
[327915173,1716625839344,-352.18,0.00029753,2]
[327915174,1716625839354,-163.63,0.00029753,2]
[327915175,1716625839364,-421.16,0.00029753,2]
[327915176,1716625839374,-150.0,0.00029753,2]
[327915177,1716625839384,-150.0,0.00029753,2]
[327915178,1716625839394,-421.16,0.00029753,2]
[327915179,1716625839404,-278.0,0.00029753,2]
[327915180,1716625839414,-150.0,0.00029753,2]
[327915181,1716625839424,-421.16,0.00029753,2]
[327915182,1716625839434,-421.16,0.00029753,2]
[327915183,1716625839444,-154.54,0.00029753,2]
[327915184,1716625839455,-150.0,0.00029753,2]
[327915185,1716625839465,-326.26,0.00029753,2]
[327915186,1716625839475,-421.16,0.00029753,2]
[327915187,1716625839486,-163.63,0.00029753,2]
[327915188,1716625839495,-150.0,0.00029753,2]
[327915189,1716625839505,-150.0,0.00029753,2]
[327915190,1716625839515,-150.0,0.00029753,2]
[327915191,1716625839525,-163.63,0.00029753,2]
[327915192,1716625839535,-150.0,0.00029753,2]
[327915193,1716625839544,-421.16,0.00029753,2]
[327915194,1716625839554,-421.16,0.00029753,2]
[327915195,1716625839564,-150.0,0.00029753,2]
[327915196,1716625839574,-150.0,0.00029753,2]
[327915197,1716625839584,-421.16,0.00029753,2]
[327915198,1716625839594,-150.0,0.00029753,2]
[327915199,1716625839604,-163.63,0.00029753,2]
[327915200,1716625839614,-150.0,0.00029753,2]
[327915201,1716625839623,-150.0,0.00029753,2]
[327915202,1716625839633,-421.16,0.00029753,2]
[327915203,1716625839643,-163.63,0.00029753,2]
[327915204,1716625839653,-150.0,0.00029753,2]
[327915205,1716625839663,-150.0,0.00029753,2]
[327915206,1716625839672,-163.63,0.00029753,2]
[327915207,1716625839682,-150.0,0.00029753,2]
[327915208,1716625839691,-421.16,0.00029753,2]
[327915209,1716625839701,-150.0,0.00029753,2]
[327915210,1716625839711,-421.16,0.00029753,2]
[327915211,1716625839720,-163.63,0.00029753,2]
[327915212,1716625839730,-150.0,0.00029753,2]
[327915213,1716625839740,-352.18,0.00029753,2]
[327915214,1716625839751,-150.0,0.00029763,2]
[327915215,1716625839760,-1500.0,0.00029764,2]
[327915216,1716625839770,-200.79728699,0.00029774,2]
[327915217,1716625839780,-17235.1500001,0.00029774,2]
[327915218,1716625839790,-19636.47058133,0.00029779,2]
[327915219,1716625839800,-8434.71127724,0.00029779,2]
[327915220,1716625839809,-174965.77183479,0.0002978,2]
[327915221,1716625839826,-1451.9363882,0.0002978,2]
[327915222,1716625839842,-68582.29177701,0.0002978,2]
[327915223,1716625839852,-79282.494,0.0002978,2]
[327915224,1716625839863,-4182.21120453,0.0002978,2]
[327915225,1716625839873,-166.64757043,0.0002978,2]
[327915226,1716625839883,-1021.06572519,0.00029784,2]
[327915227,1716625839943,-478.93427481,0.00029784,2]
[327915228,1716625839953,-50.95911092,0.00029788,2]
[327915229,1716625839965,-2221.33255,0.00029788,2]
[327915230,1716625839976,-1136.73759427,0.00029789,2]
[327915231,1716625839989,-2050.75477903,0.00029789,2]
[327915232,1716625840000,-582.1095989,0.00029789,2]
[327915233,1716625840010,-1161.12188558,0.00029789,2]
[327915234,1716625841044,-1840.26127082,0.00029789,2]
[327915235,1716625841054,-155.44488469,0.0002979,2]
[327915236,1716625841064,-150.0,0.00029794,2]
[327915237,1716625841074,-150.0,0.00029809,2]
[327915238,1716625841084,-460.44384449,0.00029827,2]
[327915239,1716625841096,-39.55615551,0.00029827,2]
[327915240,1716625841106,-500.0,0.00029827,2]
[327915241,1716625841115,-1500.0,0.00029842,2]
[327915242,1716625841125,-150.0,0.00029852,2]
[327915243,1716625841134,-4709.14384449,0.00029858,2]
[327915247,1716625843451,-1725.0,0.00029858,2]
[327915248,1716625843464,-7576.34151431,0.00029858,2]
[327915249,1716625843474,-49.7544857,0.00029858,5]
[327915250,1716625843487,-989.97407881,0.00029858,5]
[327915251,1716625843497,-2591.7692382,0.00029859,2]
[327915252,1716625843507,-582.1095989,0.00029859,2]
[327915253,1716625843517,-2440.4427135,0.00029859,2]
[327915254,1716625843527,-1996.0461031,0.0002986,2]
[327915255,1716625843536,-582.1095989,0.0002986,2]
[327915256,1716625843546,-1879.5022706,0.0002986,2]
[327915257,1716625843556,-9561.18439527,0.0002986,2]
[327915481,1716625846114,-6900.7,0.0002065,2]
[327917704,1716625868877,2548.73780077,0.00013355,2]
[327919734,1716625982423,4470.0,0.000159,2]
[327919735,1716625982986,4023.0,0.000159,2]
[327919736,1716626024837,976166.00886579,0.00013,2]
[327919739,1716626043700,173.85,0.00013973,2]
[327919740,1716626069784,1145.42183706,0.00017225,2]
[327919741,1716626195222,99987.02135779,0.00013,2]
[327919742,1716626219542,240.98288585,0.00017807,2]
[327919743,1716626245200,155.0,0.00017533,2]
[327919744,1716626260281,1227.82126936,0.00017259,2]
[327919747,1716626335404,530.30225266,0.00017259,2]
[327919749,1716626555822,240.98288585,0.00017533,2]
[327919755,1716626749626,150.38,0.00013973,2]
[327919756,1716626767372,817.0,0.000159,2]
[327919757,1716626767829,776.0,0.000159,2]
[327919801,1716627032960,-200.0,0.00019725,2]
[327919802,1716627032969,-200.0,0.000199,3]
[327919803,1716627033065,-530.14499983,0.000199,3]
[327919804,1716627033077,-912.73036531,0.000199,3]
[327919848,1716627038375,-1663.66909841,0.000199,3]
[327919850,1716627038402,-1266.34594844,0.000199,3]
[327919851,1716627038411,-811.11187339,0.0002,2]
[327919852,1716627038421,-291.28965664,0.0002,2]
[327919853,1716627038430,-1472.55039844,0.0002,4]
[327919854,1716627038439,-3742.15099099,0.0002,2]
[327919855,1716627038448,-6653.0,0.0002,2]
[327919856,1716627038457,-3958.06878433,0.0002,2]
[327919857,1716627038467,-3950.0,0.0002,2]
[327919858,1716627038476,-2562.42303804,0.0002,2]
[327919859,1716627038485,-1401.0,0.0002,2]
[327919860,1716627038504,-158.57592294,0.0002,2]
[327919861,1716627038517,-263.53335922,0.0002,2]
[327919862,1716627038527,-263.53335922,0.00020646,2]
[327919863,1716627038537,-242.09407043,0.00020647,2]
[327919864,1716627038547,-1048.52890083,0.00020649,2]
[327919865,1716627038558,-289.0,0.00020657,2]
[327919866,1716627038568,-1644.0,0.00020657,2]
[327919867,1716627038577,-613.0,0.00020657,2]
[327919868,1716627038587,-440.0,0.00020657,2]
[327919869,1716627038596,-1264.0,0.00020657,2]
[327919870,1716627038606,-1226.0,0.00020657,2]
[327919871,1716627038615,-150.133,0.00020657,2]
[327919872,1716627038624,-20852.466,0.00020657,2]
[327919873,1716627038634,-150.103,0.00020657,2]
[327919874,1716627038643,-150.228,0.00020657,2]
[327919875,1716627038652,-179.0,0.00020657,2]
[327919876,1716627038661,-283.982,0.00020657,2]
[327919877,1716627038670,-150.38,0.00020807,2]
[327919878,1716627038680,-1437.4086983,0.00021,2]
[327919879,1716627038689,-159.5916392,0.00022753,2]
[327919880,1716627038699,-157.33771067,0.00023126,2]
[327919881,1716627038708,-380.52,0.00023219,2]
[327919882,1716627038717,-2005.79258683,0.000234,2]
[327919883,1716627038726,-1201.13885187,0.00023457,2]
[327919884,1716627038735,-1227.95940182,0.00023598,2]
[327919885,1716627038745,-211.36766573,0.00023599,2]
[327919886,1716627038754,-90981.40809666,0.000236,2]
[327919887,1716627038763,-235.291,0.00023657,2]
[327919888,1716627038773,-1644.0,0.00023657,2]
[327919889,1716627038783,-440.0,0.00023657,2]
[327919890,1716627038792,-1264.0,0.00023657,2]
[327919891,1716627038801,-1225.0,0.00023657,2]
[327919893,1716627038811,-150.0,0.00023657,2]
[327919895,1716627038820,-765.0918617,0.00024,4]
[327919897,1716627038829,-164.22626437,0.00024889,2]
[327919899,1716627038838,-161.27564038,0.00024898,2]
[327919900,1716627038847,-2233.54079187,0.00025,2]
[327919901,1716627038857,-500.0,0.00025034,2]
[327919902,1716627038866,-273.62,0.00025132,2]
[327919903,1716627038875,-195.12,0.00025155,2]
[327919904,1716627038884,-1392.09,0.00025244,2]
[327919905,1716627038893,-1401.27,0.00025251,2]
[327919906,1716627038903,-1000.0,0.00025256,2]
[327919908,1716627038912,-200.0,0.00025264,2]
[327919910,1716627038921,-250.0,0.00025272,2]
[327919912,1716627038930,-250.0,0.00025319,2]
[327919914,1716627038940,-250.0,0.0002547,2]
[327919916,1716627038950,-380.52,0.00025483,2]
[327919918,1716627038959,-171.12,0.0002579,2]
[327919920,1716627038969,-170.38,0.00026134,2]
[327919922,1716627038978,-185.46,0.00026445,2]
[327919924,1716627038987,-160.14420379,0.00026449,2]
[327919926,1716627038999,-1392.09,0.00026506,2]
[327919928,1716627039009,-150.0,0.00026593,2]
[327919930,1716627039018,-756.0,0.00026657,2]
[327919932,1716627039028,-439.0,0.00026657,2]
[327919934,1716627039038,-1021.645,0.00026657,2]
[327919936,1716627039048,-337.28,0.00027397,10]
[327919938,1716627039057,-178.0,0.000274,2]
[327919940,1716627039067,-842.0,0.000274,2]
[327919942,1716627039076,-150.38,0.00027641,2]
[327919944,1716627039087,-380.52,0.00027746,2]
[327919945,1716627039096,-1392.09,0.00027768,2]
[327919946,1716627039106,-1401.27,0.00027991,2]
[327919947,1716627039115,-1234.0,0.000282,2]
[327919948,1716627039129,-170.38,0.0002829,2]
[327919949,1716627039141,-1000.0,0.00028413,2]
[327919950,1716627039151,-150.0,0.00028932,2]
[327919951,1716627039161,-150.0,0.00028932,2]
[327919952,1716627039171,-421.16,0.00028932,2]
[327919953,1716627039182,-163.63,0.00028932,2]
[327919954,1716627039192,-150.0,0.00028932,2]
[327919955,1716627039202,-421.16,0.00028932,2]
[327919956,1716627039212,-150.0,0.00028932,2]
[327919957,1716627039222,-163.63,0.00028932,2]
[327919958,1716627039232,-352.18,0.00028932,2]
[327919959,1716627039244,-150.0,0.00028932,2]
[327919960,1716627039257,-150.0,0.00028932,2]
[327919961,1716627039266,-163.63,0.00028932,2]
[327919962,1716627039276,-421.16,0.00028932,2]
[327919963,1716627039286,-352.18,0.00028932,2]
[327919964,1716627039298,-150.0,0.00028932,2]
[327919965,1716627039307,-163.63,0.00028932,2]
[327919966,1716627039317,-318.51,0.00028932,2]
[327919967,1716627039329,-374.63,0.00028932,2]
[327919968,1716627039339,-352.18,0.00028932,2]
[327919969,1716627039348,-163.63,0.00028932,2]
[327919970,1716627039358,-352.18,0.00028932,2]
[327919971,1716627039368,-150.0,0.00028932,2]
[327919972,1716627039378,-150.0,0.00028932,2]
[327919973,1716627039388,-352.18,0.00028932,2]
[327919974,1716627039398,-163.63,0.00028932,2]
[327919975,1716627039408,-163.63,0.00028932,2]
[327919976,1716627039419,-150.0,0.00028932,2]
[327919977,1716627039428,-352.18,0.00028932,2]
[327919978,1716627039438,-352.18,0.00028932,2]
[327919979,1716627039449,-5000.0,0.00029,2]
[327919980,1716627039458,-1392.09,0.0002903,2]
[327919981,1716627039468,-421.16,0.00029068,2]
[327919982,1716627039477,-150.0,0.00029068,2]
[327919983,1716627039487,-150.0,0.00029068,2]
[327919984,1716627039497,-421.16,0.00029068,2]
[327919985,1716627039508,-150.0,0.00029068,2]
[327919986,1716627039518,-150.0,0.00029068,2]
[327919987,1716627039527,-150.0,0.00029068,2]
[327919988,1716627039537,-163.63,0.00029068,2]
[327919989,1716627039548,-150.0,0.00029068,2]
[327919990,1716627039557,-421.16,0.00029068,2]
[327919991,1716627039567,-150.0,0.00029068,2]
[327919992,1716627039577,-352.18,0.00029068,2]
[327919993,1716627039587,-150.0,0.00029068,2]
[327919994,1716627039598,-163.63,0.00029068,2]
[327919995,1716627039608,-500.0,0.00029269,2]
[327919996,1716627039618,-200.0,0.00029269,2]
[327919997,1716627039628,-2667.1372,0.00029463,2]
[327919998,1716627039639,-452.4344,0.00029463,2]
[327919999,1716627039649,-161.27564038,0.00029479,2]
[327920000,1716627039659,-5081.65664504,0.00029518,2]
[327920001,1716627039669,-1851.11046,0.0002956,2]
[327920002,1716627039679,-157.15625086,0.00029561,2]
[327920003,1716627039688,-961.7453,0.00029563,2]
[327920004,1716627039699,-1244.64397579,0.00029571,2]
[327920005,1716627039708,-200.0,0.0002962,2]
[327920006,1716627039718,-150.0,0.00029633,2]
[327920007,1716627039727,-3502.19990978,0.00029635,2]
[327920008,1716627039737,-150.0,0.00029649,2]
[327920009,1716627039748,-150.0,0.00029654,2]
[327920010,1716627039757,-150.0,0.00029654,2]
[327920011,1716627039766,-19636.47058133,0.00029663,2]
[327920012,1716627039776,-40240.20263323,0.00029664,2]
[327920013,1716627039793,-34836.33049292,0.00029664,2]
[327920014,1716627039809,-815.2106899,0.00029664,2]
[327920015,1716627039843,-367.18970664,0.00029664,2]
[327920016,1716627039855,-16788.22358856,0.00029664,2]
[327920017,1716627039867,-6670.00918374,0.00029664,2]
[327920018,1716627039880,-282.83370501,0.00029664,2]
[327920019,1716627039890,-150.0,0.00029671,2]
[327920020,1716627039899,-150.0,0.00029687,2]
[327920021,1716627039910,-150.0,0.00029693,2]
[327920022,1716627039919,-125.00291776,0.00029693,2]
[327920027,1716627040734,-164.22626434,0.00025249,2]
[327920028,1716627040745,-24.99708224,0.00029693,2]
[327920029,1716627040754,-300.0,0.00029697,2]
[327920030,1716627040763,-369.33896111,0.00029723,2]
[327920031,1716627040921,-1130.66103889,0.00029723,2]
[327920032,1716627040931,-151.90308189,0.0002973,2]
[327920033,1716627040941,-150.0,0.00029731,2]
[327920034,1716627040950,-985.76587922,0.00029738,2]
[327920035,1716627040962,-652.61194826,0.00029738,2]
[327920036,1716627040981,-289.68325733,0.0002974,2]
[327920037,1716627040994,-150.0,0.00029742,2]
[327920038,1716627041004,-150.0,0.00029743,2]
[327920039,1716627041014,-352.18,0.00029753,2]
[327920040,1716627041024,-326.26,0.00029753,2]
[327920041,1716627041034,-150.0,0.00029753,2]
[327920042,1716627041044,-352.18,0.00029753,2]
[327920043,1716627041055,-15.68438826,0.00029753,2]
[327920044,1716627041077,-242.09407043,0.0002,2]
[327920045,1716627041087,-147.94561174,0.00029753,2]
[327920046,1716627041097,-150.0,0.00029753,2]
[327920047,1716627041107,-249.72370344,0.00029753,2]
[327920048,1716627041570,-102.45629656,0.00029753,2]
[327920050,1716627041581,-163.63,0.00029753,2]
[327920051,1716627041591,-352.18,0.00029753,2]
[327920052,1716627041601,-150.0,0.00029753,2]
[327920053,1716627041611,-206.7565053,0.00029753,2]
[327920060,1716627043622,-103.4534947,0.00029753,2]
[327920061,1716627043632,-163.63,0.00029753,2]
[327920062,1716627043641,-352.18,0.00029753,2]
[327920063,1716627043651,-163.63,0.00029753,2]
[327920064,1716627043660,-352.18,0.00029753,2]
[327920065,1716627043669,-163.63,0.00029753,2]
[327920066,1716627043678,-352.18,0.00029753,2]
[327920067,1716627043687,-163.63,0.00029753,2]
[327920068,1716627043697,-352.18,0.00029753,2]
[327920069,1716627043706,-352.18,0.00029753,2]
[327920070,1716627043715,-163.63,0.00029753,2]
[327920071,1716627043725,-352.18,0.00029753,2]
[327920072,1716627043734,-163.63,0.00029753,2]
[327920073,1716627043744,-352.18,0.00029753,2]
[327920074,1716627043754,-163.63,0.00029753,2]